fUST/lending_fUST_20240517
["ID","MTS","AMOUNT","RATE_DAILY","PERIOD"]
[327251184,1715928639982,-12436.63,0.00017808,2]
[327251185,1715928639992,-531.07,0.00017808,2]
[327251186,1715928640001,-500.0,0.00017808,2]
[327251187,1715928640010,-1091.97,0.00017808,2]
[327251188,1715928640019,-500.0,0.00017808,2]
[327251190,1715928640028,-618.59,0.00017808,2]
[327251191,1715928640038,-500.0,0.00017808,2]
[327251192,1715928640048,-3253.96,0.00017808,2]
[327251193,1715928640057,-500.0,0.00017808,2]
[327251194,1715928640067,-1183.92,0.00017808,2]
[327251195,1715928640076,-1536.56,0.00017808,2]
[327251196,1715928640086,-500.0,0.00017808,2]
[327251197,1715928640095,-500.0,0.00017808,2]
[327251198,1715928640106,-4995.04,0.00017808,2]
[327251199,1715928640116,-710.07,0.00017808,2]
[327251200,1715928640126,-719.43,0.00017808,2]
[327251201,1715928640136,-1058.52,0.00017808,2]
[327251202,1715928640145,-834.06,0.00017808,2]
[327251203,1715928640155,-500.0,0.00017808,2]
[327251204,1715928640164,-500.0,0.00017808,2]
[327251205,1715928640174,-3229.14,0.00017808,2]
[327251206,1715928640183,-252.0484666,0.00017808,2]
[327251207,1715928640192,-607.09314124,0.00017808,2]
[327251208,1715928640201,-572.74,0.00017808,2]
[327251209,1715928640210,-500.0,0.00017808,2]
[327251210,1715928640220,-500.0,0.00017808,2]
[327251211,1715928640229,-500.0,0.00017808,2]
[327251212,1715928640238,-500.0,0.00017808,2]
[327251214,1715928640247,-500.0,0.00017808,2]
[327251215,1715928640256,-1764.24,0.00017808,2]
[327251216,1715928640266,-533.6,0.00017808,2]
[327251217,1715928640275,-291.1139045,0.00017808,2]
[327251218,1715928640284,-291.1139045,0.00017808,2]
[327251219,1715928640293,-291.1139045,0.00017808,2]
[327251220,1715928640303,-291.1139045,0.00017808,2]
[327251221,1715928640312,-291.1139045,0.00017808,2]
[327251222,1715928640321,-291.1139045,0.00017808,2]
[327251223,1715928640330,-291.1139045,0.00017808,2]
[327251224,1715928640343,-165.1290612,0.00017808,2]
[327251225,1715928640354,-2000.0,0.00017854,2]
[327251226,1715928640363,-2000.0,0.00017863,2]
[327251227,1715928640373,-2000.0,0.00017872,2]
[327251228,1715928640382,-2000.0,0.0001788,2]
[327251229,1715928640393,-2000.0,0.00017889,2]
[327251230,1715928640403,-247.7,0.00017897,2]
[327251231,1715928640412,-10448.86120355,0.00017898,2]
[327251232,1715928640423,-2000.0,0.00017898,2]
[327251233,1715928640432,-997.7,0.00017898,2]
[327251234,1715928640441,-895.80593484,0.00018,2]
[327251235,1715928640450,-189.86799103,0.00018,2]
[327251236,1715928640459,-1000.0,0.00018,5]
[327251237,1715928640468,-153.0,0.00018071,2]
[327251238,1715928640478,-153.0,0.00018071,2]
[327251239,1715928640487,-153.0,0.00018071,2]
[327251240,1715928640497,-153.0,0.00018071,2]
[327251241,1715928640507,-153.0,0.00018071,2]
[327251242,1715928640517,-153.0,0.00018071,2]
[327251243,1715928640526,-153.0,0.00018071,2]
[327251244,1715928640536,-153.0,0.00018071,2]
[327251245,1715928640546,-153.0,0.00018071,2]
[327251246,1715928640555,-153.0,0.00018071,2]
[327251247,1715928640565,-153.0,0.00018071,2]
[327251248,1715928640575,-153.0,0.00018071,2]
[327251249,1715928640584,-153.0,0.00018071,2]
[327251250,1715928640594,-153.0,0.00018071,2]
[327251251,1715928640603,-153.0,0.00018071,2]
[327251252,1715928640613,-153.0,0.00018071,2]
[327251253,1715928640622,-153.0,0.00018071,2]
[327251254,1715928640632,-153.0,0.00018071,2]
[327251255,1715928640641,-153.0,0.00018071,2]
[327251257,1715928640650,-153.0,0.00018071,2]
[327251259,1715928640660,-153.0,0.00018071,2]
[327251260,1715928640669,-153.0,0.00018071,2]
[327251261,1715928640678,-153.0,0.00018071,2]
[327251262,1715928640687,-153.0,0.00018071,2]
[327251263,1715928640696,-153.0,0.00018071,2]
[327251264,1715928640705,-153.0,0.00018071,2]
[327251265,1715928640714,-153.0,0.00018071,2]
[327251266,1715928640724,-153.0,0.00018071,2]
[327251267,1715928640733,-153.0,0.00018071,2]
[327251268,1715928640742,-153.0,0.00018071,2]
[327251269,1715928640751,-153.0,0.00018071,2]
[327251270,1715928640760,-153.0,0.00018071,2]
[327251271,1715928640770,-153.0,0.00018071,2]
[327251272,1715928640779,-153.0,0.00018071,2]
[327251273,1715928640788,-153.0,0.00018071,2]
[327251274,1715928640797,-153.0,0.00018071,2]
[327251275,1715928640806,-153.0,0.00018071,2]
[327251276,1715928640815,-153.0,0.00018071,2]
[327251277,1715928640824,-153.0,0.00018071,2]
[327251279,1715928640833,-153.0,0.00018071,2]
[327251281,1715928640843,-153.0,0.00018071,2]
[327251283,1715928640852,-153.0,0.00018071,2]
[327251285,1715928640863,-153.0,0.00018071,2]
[327251287,1715928640872,-153.0,0.00018071,2]
[327251289,1715928640881,-153.0,0.00018071,2]
[327251291,1715928640890,-153.0,0.00018071,2]
[327251293,1715928640899,-1213.96438222,0.0001808,2]
[327251295,1715928640908,-2106.56360216,0.0001808,2]
[327251297,1715928640917,-500.0,0.00018082,2]
[327251299,1715928640926,-500.0,0.00018082,2]
[327251301,1715928640935,-567.39,0.00018082,2]
[327251303,1715928640944,-626.76,0.00018082,2]
[327251305,1715928640954,-500.0,0.00018082,4]
[327251307,1715928640963,-500.0,0.00018082,2]
[327251309,1715928640972,-500.0,0.00018082,2]
[327251311,1715928640981,-500.0,0.00018082,2]
[327251313,1715928640990,-500.0,0.00018082,2]
[327251315,1715928640999,-500.0,0.00018082,2]
[327251317,1715928641008,-500.0,0.00018082,2]
[327251319,1715928641017,-641.37,0.00018082,2]
[327251321,1715928641026,-500.0,0.00018082,2]
[327251323,1715928641035,-500.0,0.00018082,2]
[327251325,1715928641044,-603.81640848,0.00018082,2]
[327251327,1715928641053,-500.0,0.00018082,2]
[327251329,1715928641062,-559.86,0.00018082,2]
[327251331,1715928641072,-625.17,0.00018082,2]
[327251333,1715928641081,-500.0,0.00018082,2]
[327251335,1715928641090,-928.32,0.00018082,2]
[327251337,1715928641099,-500.0,0.00018082,2]
[327251339,1715928641110,-12436.63,0.00018082,2]
[327251341,1715928641119,-531.07,0.00018082,2]
[327251344,1715928641128,-500.0,0.00018082,2]
[327251346,1715928641137,-1091.97,0.00018082,2]
[327251348,1715928641147,-500.0,0.00018082,2]
[327251350,1715928641159,-618.59,0.00018082,2]
[327251351,1715928641168,-500.0,0.00018082,2]
[327251354,1715928641177,-3253.96,0.00018082,2]
[327251356,1715928641187,-500.0,0.00018082,2]
[327251357,1715928641195,-1183.92,0.00018082,2]
[327251360,1715928641204,-1536.56,0.00018082,2]
[327251362,1715928641214,-500.0,0.00018082,2]
[327251364,1715928641223,-500.0,0.00018082,2]
[327251366,1715928641232,-4995.04,0.00018082,2]
[327251368,1715928641242,-710.07,0.00018082,2]
[327251370,1715928641251,-719.43,0.00018082,2]
[327251372,1715928641260,-1058.52,0.00018082,2]
[327251374,1715928641269,-834.06,0.00018082,2]
[327251376,1715928641278,-500.0,0.00018082,2]
[327251378,1715928641288,-500.0,0.00018082,2]
[327251380,1715928641297,-3229.14,0.00018082,2]
[327251382,1715928641306,-572.74,0.00018082,2]
[327251384,1715928641315,-500.0,0.00018082,2]
[327251386,1715928641324,-500.0,0.00018082,2]
[327251388,1715928641335,-500.0,0.00018082,2]
[327251389,1715928641349,-500.0,0.00018082,2]
[327251392,1715928641360,-500.0,0.00018082,2]
[327251393,1715928641369,-1764.24,0.00018082,2]
[327251395,1715928641379,-533.6,0.00018082,2]
[327251397,1715928641388,-620.00000179,0.00018095,2]
[327251399,1715928641398,-247.7,0.00018099,2]
[327251401,1715928641407,-4204.0,0.000183,2]
[327251403,1715928641417,-247.7,0.000183,2]
[327251406,1715928641428,-500.0,0.00018356,2]
[327251408,1715928641439,-500.0,0.00018356,2]
[327251409,1715928641447,-567.39,0.00018356,2]
[327251412,1715928641458,-626.76,0.00018356,2]
[327251414,1715928641467,-500.0,0.00018356,4]
[327251415,1715928641478,-500.0,0.00018356,2]
[327251418,1715928641488,-500.0,0.00018356,2]
[327251420,1715928641498,-500.0,0.00018356,2]
[327251422,1715928641507,-500.0,0.00018356,2]
[327251424,1715928641517,-500.0,0.00018356,2]
[327251426,1715928641526,-500.0,0.00018356,2]
[327251428,1715928641536,-641.37,0.00018356,2]
[327251430,1715928641546,-500.0,0.00018356,2]
[327251432,1715928641555,-500.0,0.00018356,2]
[327251434,1715928641565,-500.0,0.00018356,2]
[327251436,1715928641575,-559.86,0.00018356,2]
[327251438,1715928641584,-625.17,0.00018356,2]
[327251440,1715928641594,-500.0,0.00018356,2]
[327251442,1715928641603,-928.32,0.00018356,2]
[327251444,1715928641614,-500.0,0.00018356,2]
[327251446,1715928641624,-12436.63,0.00018356,2]
[327251448,1715928641633,-531.07,0.00018356,2]
[327251450,1715928641642,-471.50627011,0.00018356,2]
[327251452,1715928641651,-1091.97,0.00018356,2]
[327251454,1715928641660,-500.0,0.00018356,2]
[327251456,1715928641670,-618.59,0.00018356,2]
[327251458,1715928641679,-500.0,0.00018356,2]
[327251460,1715928641689,-3253.96,0.00018356,2]
[327251462,1715928641700,-500.0,0.00018356,2]
[327251464,1715928641709,-1183.92,0.00018356,2]
[327251466,1715928641718,-1536.56,0.00018356,2]
[327251468,1715928641728,-500.0,0.00018356,2]
[327251470,1715928641737,-500.0,0.00018356,2]
[327251472,1715928641746,-4995.04,0.00018356,2]
[327251474,1715928641756,-710.07,0.00018356,2]
[327251476,1715928641766,-719.43,0.00018356,2]
[327251478,1715928641775,-1058.52,0.00018356,2]
[327251480,1715928641785,-834.06,0.00018356,2]
[327251482,1715928641795,-500.0,0.00018356,2]
[327251484,1715928641804,-500.0,0.00018356,2]
[327251486,1715928641814,-3229.14,0.00018356,2]
[327251488,1715928641824,-572.74,0.00018356,2]
[327251490,1715928641833,-500.0,0.00018356,2]
[327251492,1715928641842,-500.0,0.00018356,2]
[327251494,1715928641851,-500.0,0.00018356,2]
[327251496,1715928641862,-500.0,0.00018356,2]
[327251498,1715928641873,-500.0,0.00018356,2]
[327251500,1715928641882,-1764.24,0.00018356,2]
[327251502,1715928641892,-533.6,0.00018356,2]
[327251504,1715928641902,-92497.49336,0.00018437,2]
[327251506,1715928641911,-1688.06312618,0.000185,2]
[327251508,1715928641921,-247.7,0.00018501,2]
[327251510,1715928641931,-500.0,0.0001863,2]
[327251513,1715928641941,-500.0,0.0001863,2]
[327251514,1715928641950,-567.39,0.0001863,2]
[327251516,1715928641959,-626.76,0.0001863,2]
[327251518,1715928641969,-500.0,0.0001863,4]
[327251521,1715928641979,-500.0,0.0001863,2]
[327251523,1715928641988,-500.0,0.0001863,2]
[327251525,1715928641997,-500.0,0.0001863,2]
[327251527,1715928642007,-500.0,0.0001863,2]
[327251529,1715928642016,-500.0,0.0001863,2]
[327251530,1715928642027,-500.0,0.0001863,2]
[327251532,1715928642036,-641.37,0.0001863,2]
[327251534,1715928642046,-500.0,0.0001863,2]
[327251537,1715928642056,-500.0,0.0001863,2]
[327251539,1715928642065,-500.0,0.0001863,2]
[327251541,1715928642074,-559.86,0.0001863,2]
[327251543,1715928642084,-625.17,0.0001863,2]
[327251545,1715928642093,-500.0,0.0001863,2]
[327251547,1715928642103,-928.32,0.0001863,2]
[327251548,1715928642113,-500.0,0.0001863,2]
[327251551,1715928642122,-12436.63,0.0001863,2]
[327251552,1715928642134,-531.07,0.0001863,2]
[327251554,1715928642144,-1091.97,0.0001863,2]
[327251557,1715928642153,-500.0,0.0001863,2]
[327251558,1715928642162,-618.59,0.0001863,2]
[327251560,1715928642171,-500.0,0.0001863,2]
[327251563,1715928642181,-3253.96,0.0001863,2]
[327251565,1715928642191,-500.0,0.0001863,2]
[327251567,1715928642200,-1183.92,0.0001863,2]
[327251580,1715928642327,-1536.56,0.0001863,2]
[327251581,1715928642340,-500.0,0.0001863,2]
[327251582,1715928642351,-500.0,0.0001863,2]
[327251583,1715928642361,-500.0,0.0001863,2]
[327251584,1715928642370,-4995.04,0.0001863,2]
[327251585,1715928642381,-710.07,0.0001863,2]
[327251586,1715928642391,-719.43,0.0001863,2]
[327251587,1715928642400,-1058.52,0.0001863,2]
[327251588,1715928642409,-834.06,0.0001863,2]
[327251589,1715928642419,-500.0,0.0001863,2]
[327251590,1715928642430,-500.0,0.0001863,2]
[327251591,1715928642440,-3229.14,0.0001863,2]
[327251592,1715928642450,-572.74,0.0001863,2]
[327251593,1715928642460,-500.0,0.0001863,2]
[327251594,1715928642469,-500.0,0.0001863,2]
[327251595,1715928642479,-500.0,0.0001863,2]
[327251596,1715928642488,-500.0,0.0001863,2]
[327251597,1715928642498,-500.0,0.0001863,2]
[327251598,1715928642507,-1764.24,0.0001863,2]
[327251599,1715928642517,-533.6,0.0001863,2]
[327251600,1715928642527,-247.7,0.00018703,2]
[327251601,1715928642537,-500.0,0.00018904,2]
[327251602,1715928642548,-500.0,0.00018904,2]
[327251603,1715928642558,-567.39,0.00018904,2]
[327251604,1715928642568,-626.76,0.00018904,2]
[327251605,1715928642578,-500.0,0.00018904,4]
[327251606,1715928642588,-500.0,0.00018904,2]
[327251607,1715928642598,-500.0,0.00018904,2]
[327251608,1715928642609,-500.0,0.00018904,2]
[327251609,1715928642618,-307.21967608,0.00018904,2]
[327251610,1715928642628,-353.90561572,0.00018904,2]
[327251611,1715928642638,-500.0,0.00018904,2]
[327251612,1715928642647,-641.37,0.00018904,2]
[327251613,1715928642656,-500.0,0.00018904,2]
[327251614,1715928642666,-500.0,0.00018904,2]
[327251615,1715928642675,-500.0,0.00018904,2]
[327251616,1715928642685,-559.86,0.00018904,2]
[327251617,1715928642694,-625.17,0.00018904,2]
[327251618,1715928642703,-500.0,0.00018904,2]
[327251619,1715928642713,-928.32,0.00018904,2]
[327251620,1715928642722,-500.0,0.00018904,2]
[327251621,1715928642732,-12436.63,0.00018904,2]
[327251622,1715928642741,-531.07,0.00018904,2]
[327251623,1715928642751,-1091.97,0.00018904,2]
[327251624,1715928642760,-447.19843705,0.00018904,2]
[327251625,1715928642770,-618.59,0.00018904,2]
[327251626,1715928642779,-500.0,0.00018904,2]
[327251627,1715928642790,-3253.96,0.00018904,2]
[327251628,1715928642800,-500.0,0.00018904,2]
[327251629,1715928642809,-1183.92,0.00018904,2]
[327251630,1715928642819,-1536.56,0.00018904,2]
[327251631,1715928642828,-500.0,0.00018904,2]
[327251632,1715928642838,-500.0,0.00018904,2]
[327251633,1715928642847,-4995.04,0.00018904,2]
[327251634,1715928642858,-710.07,0.00018904,2]
[327251635,1715928642867,-719.43,0.00018904,2]
[327251636,1715928642877,-1058.52,0.00018904,2]
[327251637,1715928642886,-834.06,0.00018904,2]
[327251638,1715928642896,-356.42667981,0.00018904,2]
[327251639,1715928642906,-500.0,0.00018904,2]
[327251640,1715928642916,-3229.14,0.00018904,2]
[327251641,1715928642926,-572.74,0.00018904,2]
[327251642,1715928642935,-500.0,0.00018904,2]
[327251643,1715928642945,-500.0,0.00018904,2]
[327251644,1715928642955,-500.0,0.00018904,2]
[327251645,1715928642965,-500.0,0.00018904,2]
[327251646,1715928642974,-247.7,0.00018904,2]
[327251647,1715928642984,-500.0,0.00018904,2]
[327251648,1715928642994,-1764.24,0.00018904,2]
[327251649,1715928643003,-533.6,0.00018904,2]
[327251650,1715928643012,-130336.56078312,0.0001898,2]
[327251651,1715928643022,-312952.6640992,0.00018988,2]
[327251652,1715928643031,-1000.0,0.00019,2]
[327251653,1715928643041,-154.82968734,0.00019,2]
[327251654,1715928643051,-620.00000009,0.00019,2]
[327251655,1715928643060,-385.2357493,0.00019078,2]
[327251656,1715928643069,-160.0,0.00019142,2]
[327251657,1715928643078,-470.68020099,0.00019156,2]
[327251658,1715928643087,-211.91040012,0.00019178,2]
[327251659,1715928643096,-463.15490946,0.00019178,2]
[327251660,1715928643106,-500.85380825,0.00019178,2]
[327251661,1715928643116,-500.0,0.00019178,2]
[327251663,1715928643125,-500.0,0.00019178,2]
[327251665,1715928643134,-500.0,0.00019178,2]
[327251667,1715928643143,-500.0,0.00019178,2]
[327251669,1715928643154,-177.28839861,0.00019178,2]
[327251671,1715928643163,-435.1235994,0.00019178,2]
[327251673,1715928643173,-459.83122481,0.00019178,2]
[327251676,1715928643182,-500.0,0.00019178,2]
[327251680,1715928643192,-200.19066634,0.00019178,2]
[327251682,1715928643201,-409.4544495,0.00019178,2]
[327251684,1715928643210,-500.0,0.00019178,2]
[327251686,1715928643219,-373.17285574,0.00019178,2]
[327251687,1715928643229,-500.0,0.00019178,2]
[327251688,1715928643238,-492.44738441,0.00019178,2]
[327251689,1715928643247,-500.0,0.00019178,2]
[327251691,1715928643256,-500.0,0.00019178,2]
[327251693,1715928643265,-450.0,0.00019178,2]
[327251694,1715928643275,-500.0,0.00019178,2]
[327251696,1715928643284,-211.04887903,0.00019178,2]
[327251697,1715928643294,-500.0,0.00019178,2]
[327251698,1715928643303,-500.0,0.00019178,2]
[327251699,1715928643312,-500.0,0.00019178,2]
[327251700,1715928643321,-250.0,0.00019178,2]
[327251704,1715928643331,-500.0,0.00019178,2]
[327251709,1715928643342,-500.0,0.00019178,2]
[327251713,1715928643352,-500.0,0.00019178,2]
[327251716,1715928643362,-500.0,0.00019178,2]
[327251719,1715928643371,-500.0,0.00019178,2]
[327251722,1715928643381,-500.0,0.00019178,2]
[327251724,1715928643391,-500.0,0.00019178,2]
[327251727,1715928643400,-197.1219358,0.00019178,2]
[327251728,1715928643409,-500.0,0.00019178,2]
[327251731,1715928643421,-500.0,0.00019178,2]
[327251734,1715928643430,-500.0,0.00019178,2]
[327251737,1715928643439,-500.0,0.00019178,2]
[327251739,1715928643449,-500.0,0.00019178,2]
[327251741,1715928643458,-200.0,0.00019178,2]
[327251743,1715928643468,-220.30993511,0.00019178,2]
[327251744,1715928643477,-487.2435452,0.00019178,2]
[327251745,1715928643486,-320.65201595,0.00019178,2]
[327251746,1715928643496,-500.0,0.00019178,2]
[327251747,1715928643506,-500.0,0.00019178,2]
[327251748,1715928643515,-331.74097422,0.00019178,2]
[327251749,1715928643525,-399.52229227,0.00019178,2]
[327251750,1715928643536,-500.0,0.00019178,2]
[327251751,1715928643545,-500.0,0.00019178,2]
[327251752,1715928643556,-484.84619296,0.00019178,2]
[327251753,1715928643565,-500.0,0.00019178,2]
[327251754,1715928643574,-500.0,0.00019178,2]
[327251755,1715928643584,-500.0,0.00019178,2]
[327251756,1715928643593,-500.0,0.00019178,2]
[327251757,1715928643603,-500.0,0.00019178,2]
[327251758,1715928643613,-500.0,0.00019178,2]
[327251759,1715928643623,-339.58695591,0.00019178,2]
[327251760,1715928643632,-500.0,0.00019178,2]
[327251761,1715928643641,-500.0,0.00019178,2]
[327251762,1715928643652,-500.0,0.00019178,2]
[327251763,1715928643661,-500.0,0.00019178,2]
[327251764,1715928643671,-500.0,0.00019178,2]
[327251765,1715928643680,-500.0,0.00019178,2]
[327251766,1715928643690,-500.0,0.00019178,2]
[327251767,1715928643700,-281.88073904,0.00019178,2]
[327251768,1715928643710,-599.30151505,0.00019178,2]
[327251769,1715928643719,-471.21166451,0.00019178,2]
[327251770,1715928643729,-500.0,0.00019178,2]
[327251772,1715928643739,-288.62569767,0.00019178,2]
[327251774,1715928643749,-437.72623269,0.00019178,2]
[327251776,1715928643759,-500.0,0.00019178,2]
[327251778,1715928643767,-456.41005824,0.00019178,2]
[327251780,1715928643777,-478.72912369,0.00019178,2]
[327251782,1715928643786,-500.0,0.00019178,2]
[327251784,1715928643796,-500.0,0.00019178,2]
[327251786,1715928643805,-264.36045049,0.00019178,2]
[327251788,1715928643815,-419.66965979,0.00019178,2]
[327251789,1715928643824,-500.0,0.00019178,2]
[327251790,1715928643833,-500.0,0.00019178,2]
[327251791,1715928643842,-550.0,0.00019178,2]
[327251792,1715928643852,-500.0,0.00019178,2]
[327251793,1715928643863,-500.0,0.00019178,2]
[327251794,1715928643872,-490.36937959,0.00019178,2]
[327251795,1715928643882,-500.0,0.00019178,2]
[327251796,1715928643891,-489.38294588,0.00019178,2]
[327251797,1715928643901,-500.0,0.00019178,2]
[327251798,1715928643911,-526.04980755,0.00019178,2]
[327251799,1715928643921,-439.7356318,0.00019178,2]
[327251800,1715928643930,-2205.73576543,0.00019178,2]
[327251801,1715928643940,-2205.73576543,0.00019178,2]
[327251802,1715928643949,-2205.73576543,0.00019178,2]
[327251803,1715928643958,-2205.73576543,0.00019178,2]
[327251804,1715928643968,-2205.73576543,0.00019178,2]
[327251805,1715928643977,-2205.73576543,0.00019178,2]
[327251806,1715928643987,-2205.73576543,0.00019178,2]
[327251807,1715928643996,-2205.73576543,0.00019178,2]
[327251808,1715928644005,-2205.73576543,0.00019178,2]
[327251809,1715928644015,-2205.73576543,0.00019178,2]
[327251810,1715928644024,-2205.73576543,0.00019178,2]
[327251812,1715928644034,-2205.73576543,0.00019178,2]
[327251814,1715928644043,-2205.73576543,0.00019178,2]
[327251815,1715928644052,-2205.73576543,0.00019178,2]
[327251816,1715928644061,-2205.73576543,0.00019178,2]
[327251817,1715928644070,-2205.73576543,0.00019178,2]
[327251818,1715928644079,-2205.73576543,0.00019178,2]
[327251819,1715928644089,-2205.73576543,0.00019178,2]
[327251820,1715928644098,-2205.73576543,0.00019178,2]
[327251821,1715928644107,-2205.73576543,0.00019178,2]
[327251822,1715928644117,-2205.73576543,0.00019178,2]
[327251823,1715928644126,-2205.73576543,0.00019178,2]
[327251824,1715928644135,-2205.73576543,0.00019178,2]
[327251825,1715928644146,-2205.73576543,0.00019178,2]
[327251826,1715928644155,-2205.73576543,0.00019178,2]
[327251827,1715928644164,-2205.73576543,0.00019178,2]
[327251828,1715928644173,-2205.73576543,0.00019178,2]
[327251829,1715928644183,-2205.73576543,0.00019178,2]
[327251830,1715928644192,-2205.73576543,0.00019178,2]
[327251831,1715928644202,-2205.73576543,0.00019178,2]
[327251832,1715928644211,-2205.73576543,0.00019178,2]
[327251833,1715928644221,-2205.73576543,0.00019178,2]
[327251834,1715928644230,-2205.73576543,0.00019178,2]
[327251835,1715928644239,-2205.73576543,0.00019178,2]
[327251836,1715928644249,-2205.73576543,0.00019178,2]
[327251837,1715928644260,-2205.73576543,0.00019178,2]
[327251838,1715928644269,-2205.73576543,0.00019178,2]
[327251839,1715928644279,-2205.73576543,0.00019178,2]
[327251840,1715928644288,-2205.73576543,0.00019178,2]
[327251841,1715928644297,-2205.73576543,0.00019178,2]
[327251842,1715928644307,-4980.69366386,0.00019178,2]
[327251843,1715928644316,-4980.69366386,0.00019178,2]
[327251844,1715928644326,-4980.69366386,0.00019178,2]
[327251845,1715928644336,-4980.69366386,0.00019178,2]
[327251846,1715928644351,-4980.69366386,0.00019178,2]
[327251847,1715928644361,-4980.69366386,0.00019178,2]
[327251848,1715928644371,-4980.69366386,0.00019178,2]
[327251849,1715928644382,-4980.69366386,0.00019178,2]
[327251850,1715928644391,-4980.69366386,0.00019178,2]
[327251851,1715928644401,-4980.69366386,0.00019178,2]
[327251852,1715928644411,-4980.69366386,0.00019178,2]
[327251853,1715928644423,-4980.69366386,0.00019178,2]
[327251854,1715928644433,-4980.69366386,0.00019178,2]
[327251855,1715928644444,-4980.69366386,0.00019178,2]
[327251856,1715928644454,-4980.69366386,0.00019178,2]
[327251857,1715928644464,-4980.69366386,0.00019178,2]
[327251858,1715928644474,-4980.69366386,0.00019178,2]
[327251859,1715928644483,-4980.69366386,0.00019178,2]
[327251860,1715928644493,-4980.69366386,0.00019178,2]
[327251861,1715928644504,-4980.69366386,0.00019178,2]
[327251862,1715928644514,-4980.69366386,0.00019178,2]
[327251863,1715928644524,-41848.30651647,0.00019178,2]
[327251864,1715928644534,-41848.30651647,0.00019178,2]
[327251865,1715928644544,-41848.30651647,0.00019178,2]
[327251866,1715928644553,-41848.30651647,0.00019178,2]
[327251867,1715928644563,-41848.30651647,0.00019178,2]
[327251868,1715928644573,-41848.30651646,0.00019178,2]
[327251869,1715928644583,-561.12564998,0.00019178,2]
[327251870,1715928644593,-500.0,0.00019178,2]
[327251871,1715928644604,-201.86725901,0.00019178,2]
[327251872,1715928644615,-467.95175925,0.00019178,2]
[327251873,1715928644624,-423.05070954,0.00019178,2]
[327251874,1715928644633,-500.0,0.00019178,2]
[327251875,1715928644643,-530.00284739,0.00019178,2]
[327251876,1715928644653,-500.0,0.00019178,2]
[327251877,1715928644663,-581.92176537,0.00019178,2]
[327251878,1715928644673,-502.14205205,0.00019178,2]
[327251879,1715928644714,-500.0,0.00019178,2]
[327251880,1715928644724,-545.56632594,0.00019178,2]
[327251881,1715928644734,-500.0,0.00019178,2]
[327251882,1715928644743,-500.0,0.00019178,2]
[327251883,1715928644753,-447.88816789,0.00019178,2]
[327251884,1715928644762,-500.0,0.00019178,2]
[327251885,1715928644771,-443.35774945,0.00019178,2]
[327251886,1715928644781,-500.0,0.00019178,2]
[327251887,1715928644790,-500.0,0.00019178,2]
[327251888,1715928644800,-496.32197982,0.00019178,2]
[327251889,1715928644809,-500.0,0.00019178,2]
[327251890,1715928644819,-500.0,0.00019178,2]
[327251891,1715928644828,-500.0,0.00019178,2]
[327251892,1715928644838,-488.21844131,0.00019178,2]
[327251893,1715928644847,-500.0,0.00019178,2]
[327251894,1715928644857,-500.0,0.00019178,2]
[327251895,1715928644868,-500.0,0.00019178,2]
[327251896,1715928644877,-500.0,0.00019178,2]
[327251897,1715928644887,-500.0,0.00019178,2]
[327251898,1715928644896,-650.0,0.00019178,2]
[327251899,1715928644905,-833.33333333,0.00019178,2]
[327251900,1715928644914,-833.33333333,0.00019178,2]
[327251901,1715928644924,-833.33333333,0.00019178,2]